fUSD/lending_fUSD_20240216
["ID","MTS","AMOUNT","RATE_DAILY","PERIOD"]
[314253704,1708119128527,-500.0,0.00051506,60]
[314253705,1708119128539,-500.0,0.00051506,60]
[314253706,1708119128549,-500.0,0.00051506,60]
[314253707,1708119128562,-500.0,0.00051506,60]
[314253708,1708119128572,-500.0,0.00051506,60]
[314253709,1708119128583,-500.0,0.00051506,60]
[314253710,1708119128593,-500.0,0.00051506,60]
[314253711,1708119128603,-500.0,0.00051506,60]
[314253712,1708119128614,-327.39768246,0.00051506,60]
[314253713,1708119128624,-500.0,0.00051506,60]
[314253714,1708119128633,-500.0,0.00051506,60]
[314253715,1708119128643,-500.0,0.00051506,60]
[314253716,1708119128653,-500.0,0.00051506,60]
[314253717,1708119128663,-500.0,0.00051506,60]
[314253718,1708119128674,-500.0,0.00051506,60]
[314253719,1708119128685,-500.0,0.00051506,60]
[314253720,1708119128695,-500.0,0.00051506,60]
[314253721,1708119128936,-500.0,0.00051506,60]
[314253722,1708119128948,-500.0,0.00051506,60]
[314253723,1708119128959,-500.0,0.00051506,60]
[314253724,1708119128968,-500.0,0.00051506,60]
[314253725,1708119128980,-500.0,0.00051506,60]
[314253726,1708119128990,-500.0,0.00051506,60]
[314253727,1708119129000,-500.0,0.00051506,60]
[314253728,1708119129011,-500.0,0.00051506,60]
[314253729,1708119129021,-500.0,0.00051506,60]
[314253730,1708119129032,-500.0,0.00051506,60]
[314253731,1708119129041,-500.0,0.00051506,60]
[314253732,1708119129051,-500.0,0.00051506,60]
[314253733,1708119129061,-500.0,0.00051506,60]
[314253734,1708119129071,-664.54,0.00051506,30]
[314253735,1708119129080,-500.0,0.00051506,60]
[314253736,1708119129090,-500.0,0.00051506,60]
[314253737,1708119129100,-500.0,0.00051506,60]
[314253738,1708119129110,-568.05,0.00051506,2]
[314253739,1708119129119,-500.0,0.00051506,60]
[314253740,1708119129129,-500.0,0.00051506,60]
[314253741,1708119129139,-500.0,0.00051506,60]
[314253742,1708119129149,-500.0,0.00051506,60]
[314253743,1708119129158,-500.0,0.00051506,60]
[314253744,1708119129170,-500.0,0.00051506,60]
[314253745,1708119129181,-500.0,0.00051506,60]
[314253746,1708119129191,-500.0,0.00051506,60]
[314253747,1708119129201,-500.0,0.00051506,60]
[314253748,1708119129210,-500.0,0.00051506,60]
[314253749,1708119129220,-500.0,0.00051506,60]
[314253750,1708119129230,-500.0,0.00051506,60]
[314253751,1708119129239,-500.0,0.00051506,60]
[314253752,1708119129249,-500.0,0.00051506,60]
[314253753,1708119129259,-500.0,0.00051506,60]
[314253754,1708119129270,-500.0,0.00051506,60]
[314253755,1708119129280,-500.0,0.00051506,60]
[314253756,1708119129291,-500.0,0.00051506,60]
[314253757,1708119129302,-500.0,0.00051506,60]
[314253758,1708119129312,-500.0,0.00051506,60]
[314253759,1708119129322,-500.0,0.00051506,60]
[314253760,1708119129332,-500.0,0.00051506,60]
[314253761,1708119129344,-500.0,0.00051506,60]
[314253762,1708119129353,-500.0,0.00051506,60]
[314253763,1708119129363,-500.0,0.00051506,60]
[314253764,1708119129373,-500.0,0.00051506,60]
[314253765,1708119129383,-500.0,0.00051506,60]
[314253766,1708119129392,-500.0,0.00051506,60]
[314253767,1708119129402,-500.0,0.00051506,60]
[314253768,1708119129411,-500.0,0.00051506,60]
[314253769,1708119129421,-500.0,0.00051506,60]
[314253770,1708119129432,-500.0,0.00051506,60]
[314253771,1708119129441,-631.37,0.00051506,60]
[314253772,1708119129451,-500.0,0.00051506,60]
[314253773,1708119129461,-500.0,0.00051506,60]
[314253774,1708119129471,-500.0,0.00051506,60]
[314253775,1708119129481,-500.0,0.00051506,60]
[314253776,1708119129490,-500.0,0.00051506,60]
[314253777,1708119129500,-466.17,0.00051506,60]
[314253778,1708119129510,-500.0,0.00051506,60]
[314253779,1708119129520,-500.0,0.00051506,60]
[314253780,1708119129530,-500.0,0.00051506,60]
[314253781,1708119129541,-500.0,0.00051506,60]
[314253782,1708119129551,-500.0,0.00051506,60]
[314253783,1708119129561,-500.0,0.00051506,60]
[314253784,1708119129571,-500.0,0.00051506,60]
[314253785,1708119129582,-500.0,0.00051506,60]
[314253786,1708119129592,-500.0,0.00051506,60]
[314253787,1708119129602,-549.14,0.00051506,60]
[314253788,1708119129612,-500.0,0.00051506,60]
[314253789,1708119129622,-500.0,0.00051506,60]
[314253790,1708119129631,-500.0,0.00051506,60]
[314253791,1708119129640,-500.0,0.00051506,60]
[314253792,1708119129650,-500.0,0.00051506,60]
[314253793,1708119129659,-500.0,0.00051506,60]
[314253794,1708119129669,-500.0,0.00051506,60]
[314253795,1708119129678,-500.0,0.00051506,60]
[314253796,1708119129687,-404.79050968,0.00051506,60]
[314253797,1708119129696,-500.0,0.00051506,60]
[314253798,1708119129705,-553.65483873,0.00051506,60]
[314253799,1708119129715,-500.0,0.00051506,60]
[314253800,1708119129726,-500.0,0.00051506,60]
[314253801,1708119129735,-500.0,0.00051506,60]
[314253802,1708119129745,-953.91,0.00051506,60]
[314253803,1708119129755,-713.03,0.00051506,60]
[314253804,1708119129764,-500.0,0.00051506,60]
[314253805,1708119129774,-639.89,0.00051506,60]
[314253806,1708119129782,-500.0,0.00051506,60]
[314253807,1708119129792,-510.16,0.00051506,60]
[314253808,1708119129801,-500.0,0.00051506,60]
[314253809,1708119129810,-500.0,0.00051506,60]
[314253810,1708119129819,-500.0,0.00051506,60]
[314253811,1708119129829,-580.88,0.00051506,60]
[314253812,1708119129839,-500.0,0.00051506,60]
[314253813,1708119129849,-500.0,0.00051506,60]
[314253814,1708119129859,-500.0,0.00051506,60]
[314253815,1708119129870,-500.0,0.00051506,60]
[314253816,1708119129881,-555.94,0.00051506,60]
[314253817,1708119129892,-572.13,0.00051506,60]
[314253818,1708119129901,-570.46,0.00051506,60]
[314253819,1708119129911,-551.75,0.00051506,60]
[314253820,1708119129924,-500.0,0.00051506,60]
[314253821,1708119129934,-500.0,0.00051506,60]
[314253822,1708119129943,-496.08264943,0.00051506,60]
[314253823,1708119129952,-500.0,0.00051506,60]
[314253824,1708119129963,-500.0,0.00051506,60]
[314253825,1708119129973,-616.49,0.00051506,60]
[314253826,1708119129982,-500.0,0.00051506,60]
[314253827,1708119129993,-500.0,0.00051506,60]
[314253828,1708119130002,-500.0,0.00051506,60]
[314253829,1708119130012,-569.39,0.00051506,60]
[314253830,1708119130021,-500.0,0.00051506,60]
[314253831,1708119130032,-500.0,0.00051506,60]
[314253832,1708119130042,-500.0,0.00051506,60]
[314253833,1708119130052,-500.0,0.00051506,60]
[314253834,1708119130063,-614.71,0.00051506,60]
[314253835,1708119130073,-500.0,0.00051506,60]
[314253836,1708119130084,-500.0,0.00051506,60]
[314253837,1708119130093,-500.0,0.00051506,60]
[314253838,1708119130102,-500.0,0.00051506,60]
[314253839,1708119130112,-2236.49,0.00051506,60]
[314253840,1708119130122,-869.27,0.00051506,60]
[314253841,1708119130133,-679.72,0.00051506,60]
[314253842,1708119130144,-514.97,0.00051506,60]
[314253843,1708119130153,-500.0,0.00051506,60]
[314253844,1708119130163,-745.29,0.00051506,60]
[314253845,1708119130173,-500.0,0.00051506,60]
[314253846,1708119130183,-597.04,0.00051506,60]
[314253847,1708119130193,-500.0,0.00051506,60]
[314253848,1708119130203,-647.43,0.00051506,60]
[314253849,1708119130212,-541.75,0.00051506,60]
[314253850,1708119130222,-500.0,0.00051506,60]
[314253851,1708119130235,-605.87976112,0.00051506,60]
[314253852,1708119130245,-500.0,0.00051506,60]
[314253853,1708119130255,-1088.61,0.00051506,2]
[314253854,1708119130264,-500.0,0.00051506,60]
[314253855,1708119130274,-500.0,0.00051506,60]
[314253856,1708119130284,-500.0,0.00051506,60]
[314253857,1708119130294,-500.0,0.00051506,60]
[314253858,1708119130304,-500.0,0.00051506,60]
[314253859,1708119130313,-500.0,0.00051506,60]
[314253860,1708119130323,-500.0,0.00051506,60]
[314253861,1708119130333,-568.01,0.00051506,60]
[314253862,1708119130342,-500.0,0.00051506,60]
[314253863,1708119130352,-581.86,0.00051506,60]
[314253864,1708119130361,-500.0,0.00051506,60]
[314253865,1708119130371,-500.0,0.00051506,60]
[314253866,1708119130381,-792.04,0.00051506,60]
[314253867,1708119130391,-500.0,0.00051506,60]
[314253868,1708119130400,-500.0,0.00051506,60]
[314253869,1708119130410,-500.0,0.00051506,60]
[314253870,1708119130420,-500.0,0.00051506,60]
[314253871,1708119130429,-500.0,0.00051506,60]
[314253872,1708119130439,-500.0,0.00051506,60]
[314253873,1708119130448,-574.86,0.00051506,60]
[314253874,1708119130459,-500.0,0.00051506,60]
[314253875,1708119130469,-500.0,0.00051506,60]
[314253876,1708119130478,-500.0,0.00051506,60]
[314253877,1708119130488,-724.01,0.00051506,60]
[314253878,1708119130498,-500.0,0.00051506,60]
[314253879,1708119130508,-500.0,0.00051506,30]
[314253880,1708119130518,-500.0,0.00051506,60]
[314253881,1708119130527,-500.0,0.00051506,60]
[314253882,1708119130536,-500.0,0.00051506,60]
[314253883,1708119130546,-500.0,0.00051506,60]
[314253884,1708119130555,-500.0,0.00051506,60]
[314253885,1708119130564,-500.0,0.00051506,60]
[314253886,1708119130575,-574.15,0.00051506,60]
[314253887,1708119130585,-500.0,0.00051506,60]
[314253888,1708119130595,-500.0,0.00051506,60]
[314253889,1708119130605,-604.06,0.00051506,60]
[314253890,1708119130614,-1173.51,0.00051506,7]
[314253891,1708119130624,-617.63,0.00051506,60]
[314253892,1708119130633,-500.0,0.00051506,60]
[314253893,1708119130643,-500.0,0.00051506,60]
[314253894,1708119130653,-500.0,0.00051506,60]
[314253895,1708119130662,-500.0,0.00051506,60]
[314253896,1708119130672,-500.0,0.00051506,60]
[314253897,1708119130682,-500.0,0.00051506,60]
[314253898,1708119130692,-511.02,0.00051506,60]
[314253899,1708119130701,-500.0,0.00051506,60]
[314253900,1708119130711,-840.32,0.00051506,2]
[314253901,1708119130720,-500.0,0.00051506,60]
[314253902,1708119130730,-551.0,0.00051506,60]
[314253903,1708119130739,-500.0,0.00051506,60]
[314253904,1708119130749,-500.0,0.00051506,60]
[314253905,1708119130757,-2031.12,0.00051506,2]
[314253906,1708119130766,-500.0,0.00051506,60]
[314253907,1708119130776,-500.0,0.00051506,60]
[314253908,1708119130786,-608.56,0.00051506,60]
[314253909,1708119130795,-500.0,0.00051506,60]
[314253910,1708119130804,-500.0,0.00051506,60]
[314253911,1708119130813,-542.29,0.00051506,60]
[314253912,1708119130824,-500.0,0.00051506,60]
[314253913,1708119130834,-500.0,0.00051506,60]
[314253914,1708119130843,-500.0,0.00051506,60]
[314253915,1708119130853,-500.0,0.00051506,60]
[314253916,1708119130863,-500.0,0.00051506,60]
[314253917,1708119130874,-500.0,0.00051506,60]
[314253918,1708119130884,-500.0,0.00051506,60]
[314253919,1708119130895,-500.0,0.00051506,60]
[314253920,1708119130904,-662.34,0.00051506,60]
[314253921,1708119130915,-500.0,0.00051506,60]
[314253922,1708119130930,-500.0,0.00051506,60]
[314253923,1708119130940,-500.0,0.00051506,60]
[314253924,1708119130949,-500.0,0.00051506,60]
[314253925,1708119130959,-500.0,0.00051506,60]
[314253926,1708119130969,-725.97,0.00051506,60]
[314253927,1708119130979,-500.0,0.00051506,60]
[314253928,1708119130988,-500.0,0.00051506,60]
[314253929,1708119130998,-862.39,0.00051506,60]
[314253930,1708119131009,-500.0,0.00051506,60]
[314253931,1708119131020,-597.26697036,0.00051506,60]
[314253932,1708119131029,-500.0,0.00051506,60]
[314253933,1708119131039,-500.0,0.00051506,60]
[314253934,1708119131050,-500.0,0.00051506,60]
[314253935,1708119131059,-500.0,0.00051506,60]
[314253936,1708119131069,-500.0,0.00051506,60]
[314253937,1708119131078,-500.0,0.00051506,60]
[314253938,1708119131087,-500.0,0.00051506,60]
[314253939,1708119131097,-693.28,0.00051506,60]
[314253940,1708119131106,-196.82616745,0.00051506,60]
[314253941,1708119131117,-500.0,0.00051506,60]
[314253942,1708119131127,-531.44702969,0.00051506,60]
[314253943,1708119131138,-500.0,0.00051506,60]
[314253944,1708119131147,-703.48,0.00051506,60]
[314253945,1708119131157,-500.0,0.00051506,60]
[314253946,1708119131168,-150.71067391,0.00051506,60]
[314253947,1708119131178,-500.0,0.00051506,60]
[314253948,1708119131187,-566.58,0.00051506,60]
[314253949,1708119131196,-500.0,0.00051506,60]
[314253950,1708119131205,-500.0,0.00051506,60]
[314253951,1708119131215,-500.0,0.00051506,60]
[314253952,1708119131224,-1032.17,0.00051506,60]
[314253953,1708119131233,-536.17,0.00051506,60]
[314253954,1708119131243,-500.0,0.00051506,60]
[314253955,1708119131252,-500.0,0.00051506,60]
[314253956,1708119131262,-986.8,0.00051506,60]
[314253957,1708119131270,-500.0,0.00051506,60]
[314253958,1708119131281,-500.0,0.00051506,60]
[314253959,1708119131290,-782.04,0.00051506,60]
[314253960,1708119131405,-539.44,0.00051506,60]
[314253961,1708119131415,-500.0,0.00051506,60]
[314253962,1708119131424,-500.0,0.00051506,60]
[314253963,1708119131434,-500.94,0.00051506,60]
[314253964,1708119131443,-500.0,0.00051506,60]
[314253965,1708119131452,-500.0,0.00051506,60]
[314253966,1708119131461,-500.0,0.00051506,60]
[314253967,1708119131470,-500.0,0.00051506,60]
[314253968,1708119131481,-500.0,0.00051506,60]
[314253969,1708119131490,-708.38,0.00051506,60]
[314253970,1708119131500,-500.0,0.00051506,60]
[314253971,1708119131509,-500.0,0.00051506,60]
[314253972,1708119131518,-500.0,0.00051506,60]
[314253973,1708119131527,-515.61,0.00051506,60]
[314253974,1708119131536,-500.0,0.00051506,60]
[314253975,1708119131545,-578.51,0.00051506,60]
[314253976,1708119131556,-500.0,0.00051506,7]
[314253977,1708119131567,-500.0,0.00051506,60]
[314253978,1708119131576,-500.0,0.00051506,60]
[314253979,1708119131586,-500.0,0.00051506,60]
[314253980,1708119131596,-500.0,0.00051506,60]
[314253981,1708119131605,-500.0,0.00051506,60]
[314253982,1708119131615,-940.09,0.00051506,60]
[314253983,1708119131626,-500.0,0.00051506,60]
[314253984,1708119131637,-500.0,0.00051506,60]
[314253985,1708119131647,-592.4423385,0.00051506,60]
[314253986,1708119131657,-500.0,0.00051506,60]
[314253987,1708119131667,-500.0,0.00051506,60]
[314253988,1708119131676,-500.0,0.00051506,60]
[314253989,1708119131685,-500.0,0.00051506,60]
[314253990,1708119131694,-816.62,0.00051506,60]
[314253991,1708119131703,-500.0,0.00051506,60]
[314253992,1708119131712,-500.0,0.00051506,60]
[314253993,1708119131721,-500.0,0.00051506,60]
[314253994,1708119131731,-500.0,0.00051506,60]
[314253995,1708119131741,-500.0,0.00051506,60]
[314253996,1708119131750,-642.11,0.00051506,60]
[314253997,1708119131760,-500.0,0.00051506,60]
[314253998,1708119131769,-500.0,0.00051506,60]
[314253999,1708119131778,-500.0,0.00051506,60]
[314254000,1708119131787,-500.0,0.00051506,60]
[314254001,1708119131797,-493.73714512,0.00051506,60]
[314254002,1708119131806,-500.0,0.00051506,60]
[314254003,1708119131815,-500.0,0.00051506,60]
[314254004,1708119131826,-500.0,0.00051506,60]
[314254005,1708119131837,-1167.88,0.00051506,60]
[314254006,1708119131847,-500.0,0.00051506,60]
[314254007,1708119131857,-500.0,0.00051506,60]
[314254008,1708119131867,-500.0,0.00051506,60]
[314254009,1708119131876,-500.0,0.00051506,60]
[314254010,1708119131885,-851.65,0.00051506,60]
[314254011,1708119131895,-500.0,0.00051506,60]
[314254012,1708119131904,-500.0,0.00051506,60]
[314254013,1708119131913,-500.0,0.00051506,60]
[314254014,1708119131927,-500.0,0.00051506,60]
[314254015,1708119131937,-500.0,0.00051506,60]
[314254016,1708119131946,-2216.52,0.00051506,60]
[314254017,1708119131956,-500.0,0.00051506,60]
[314254018,1708119131966,-500.0,0.00051506,60]
[314254019,1708119131975,-500.0,0.00051506,60]
[314254020,1708119131986,-308.21759356,0.00051506,60]
[314254021,1708119131996,-500.0,0.00051506,60]
[314254022,1708119132007,-500.0,0.00051506,60]
[314254023,1708119132017,-500.0,0.00051506,60]
[314254024,1708119132027,-694.71,0.00051506,60]
[314254025,1708119132036,-500.0,0.00051506,60]
[314254026,1708119132046,-500.0,0.00051506,60]
[314254027,1708119132055,-532.12,0.00051506,60]
[314254028,1708119132065,-500.0,0.00051506,60]
[314254029,1708119132074,-500.0,0.00051506,60]
[314254030,1708119132083,-500.0,0.00051506,60]
[314254031,1708119132094,-500.0,0.00051506,60]
[314254032,1708119132104,-2871.6,0.00051506,60]
[314254033,1708119132113,-500.0,0.00051506,60]
[314254034,1708119132123,-500.0,0.00051506,60]
[314254035,1708119132133,-500.0,0.00051506,60]
[314254036,1708119132143,-562.06,0.00051506,60]
[314254037,1708119132153,-500.0,0.00051506,60]
[314254038,1708119132162,-589.85,0.00051506,60]
[314254039,1708119132171,-500.0,0.00051506,60]
[314254040,1708119132181,-500.0,0.00051506,60]
[314254041,1708119132190,-1083.11,0.00051506,60]
[314254042,1708119132199,-500.0,0.00051506,60]
[314254043,1708119132209,-560.34940959,0.00051506,60]
[314254044,1708119132219,-2574.8,0.00051506,60]
[314254045,1708119132228,-150.0,0.00051506,60]
[314254046,1708119132242,-500.0,0.00051506,60]
[314254047,1708119132252,-500.0,0.00051506,60]
[314254048,1708119132263,-500.0,0.00051506,60]
[314254049,1708119132273,-500.0,0.00051506,60]
[314254050,1708119132283,-890.17,0.00051506,60]
[314254051,1708119132293,-1244.45,0.00051506,60]
[314254052,1708119132303,-500.0,0.00051506,60]
[314254053,1708119132314,-500.0,0.00051506,60]
[314254054,1708119132323,-500.0,0.00051506,60]
[314254055,1708119132332,-500.0,0.00051506,60]
[314254056,1708119132342,-620.97374092,0.00051506,60]
[314254057,1708119132351,-250.0,0.00051506,60]
[314254058,1708119132360,-588.9,0.00051506,60]
[314254059,1708119132369,-1983.03,0.00051506,60]
[314254060,1708119132378,-500.0,0.00051506,60]
[314254061,1708119132387,-500.0,0.00051506,60]
[314254062,1708119132397,-500.0,0.00051506,60]
[314254063,1708119132406,-500.0,0.00051506,60]
[314254064,1708119132417,-1068.84,0.00051506,60]
[314254065,1708119132429,-742.37,0.00051506,60]
[314254066,1708119132439,-803.55,0.00051506,60]
[314254067,1708119132448,-4400.67,0.00051506,60]
[314254068,1708119132459,-500.0,0.00051506,60]
[314254069,1708119132470,-821.93,0.00051506,60]
[314254070,1708119132481,-500.0,0.00051506,60]
[314254071,1708119132491,-538.03,0.00051506,60]
[314254072,1708119132501,-500.0,0.00051506,60]
[314254073,1708119132512,-500.0,0.00051506,60]
[314254074,1708119132521,-500.0,0.00051506,60]
[314254075,1708119132532,-500.0,0.00051506,60]
[314254076,1708119132541,-3625.09,0.00051506,60]
[314254077,1708119132550,-500.0,0.00051506,60]
[314254078,1708119132561,-964.44,0.00051506,60]
[314254079,1708119132572,-1492.92,0.00051506,60]
[314254080,1708119132582,-2046.77,0.00051506,60]
[314254081,1708119132593,-500.0,0.00051506,60]
[314254082,1708119132603,-500.0,0.00051506,60]
[314254083,1708119132612,-500.0,0.00051506,60]
[314254084,1708119132623,-802.5,0.00051506,60]
[314254085,1708119132634,-610.16,0.00051506,60]
[314254086,1708119132646,-500.0,0.00051506,60]
[314254087,1708119132655,-500.0,0.00051506,60]
[314254088,1708119132666,-500.0,0.00051506,60]
[314254089,1708119132675,-1066.34,0.00051506,60]
[314254090,1708119132685,-500.0,0.00051506,60]
[314254091,1708119132694,-797.01,0.00051506,60]
[314254092,1708119132703,-500.0,0.00051506,60]
[314254093,1708119132713,-729.2,0.00051506,60]
[314254094,1708119132724,-3199.37,0.00051506,60]
[314254095,1708119132734,-500.0,0.00051506,60]
[314254096,1708119132744,-500.0,0.00051506,60]
[314254097,1708119132755,-24352.15,0.00051506,60]
[314254098,1708119132766,-1397.78,0.00051506,60]
[314254099,1708119132776,-500.0,0.00051506,60]
[314254100,1708119132785,-500.0,0.00051506,60]
[314254101,1708119132795,-500.0,0.00051506,60]
[314254102,1708119132806,-2225.09,0.00051506,60]
[314254103,1708119132815,-500.0,0.00051506,60]
[314254104,1708119132824,-500.0,0.00051506,60]
[314254105,1708119132834,-3059.93,0.00051506,60]
[314254106,1708119132843,-663.32,0.00051506,60]
[314254107,1708119132852,-559.03,0.00051506,60]
[314254108,1708119132861,-500.0,0.00051506,60]
[314254109,1708119132870,-500.0,0.00051506,60]
[314254110,1708119132878,-500.0,0.00051506,60]
[314254111,1708119132887,-500.0,0.00051506,60]
[314254112,1708119132897,-500.0,0.00051506,60]
[314254113,1708119132905,-3189.76,0.00051506,60]
[314254114,1708119132915,-2572.92,0.00051506,60]
[314254115,1708119132930,-1075.21,0.00051506,60]
[314254116,1708119132940,-500.0,0.00051506,60]
[314254117,1708119132950,-500.0,0.00051506,60]
[314254118,1708119132962,-4525.95,0.00051506,60]
[314254119,1708119132971,-500.0,0.00051506,60]
[314254120,1708119132982,-648.82,0.00051506,60]
[314254121,1708119132991,-5354.43,0.00051506,60]
[314254122,1708119133005,-703.45,0.00051506,60]
[314254123,1708119133015,-589.33226051,0.00051506,60]
[314254124,1708119133024,-1211.83,0.00051506,60]
[314254125,1708119133034,-871.55,0.00051506,60]
[314254126,1708119133045,-609.42,0.00051506,60]
[314254127,1708119133055,-1231.04,0.00051506,60]
[314254128,1708119133064,-737.52,0.00051506,60]
[314254129,1708119133074,-591.52,0.00051506,60]
[314254130,1708119133084,-719.76,0.00051506,60]
[314254131,1708119133094,-2765.99,0.00051506,60]
[314254132,1708119133105,-500.0,0.00051506,60]
[314254133,1708119133114,-500.0,0.00051506,60]
[314254134,1708119133125,-1575.91,0.00051506,60]
[314254135,1708119133134,-500.0,0.00051506,60]
[314254136,1708119133145,-868.38,0.00051506,60]
[314254137,1708119133155,-9546.8,0.00051506,60]
[314254138,1708119133165,-2411.87,0.00051506,60]
[314254139,1708119133174,-606.97,0.00051506,60]
[314254140,1708119133183,-500.0,0.00051506,60]
[314254141,1708119133193,-614.61649032,0.00051506,60]
[314254142,1708119133203,-500.0,0.00051506,60]
[314254143,1708119133213,-570.56,0.00051506,60]
[314254144,1708119133222,-500.0,0.00051506,60]
[314254145,1708119133231,-1028.79,0.00051506,60]
[314254146,1708119133241,-500.0,0.00051506,60]
[314254147,1708119133251,-1081.67,0.00051506,60]
[314254148,1708119133260,-500.0,0.00051506,60]
[314254149,1708119133270,-8340.13,0.00051506,60]
[314254150,1708119133279,-500.0,0.00051506,60]
[314254151,1708119133288,-500.0,0.00051506,60]
[314254152,1708119133297,-500.0,0.00051506,60]
[314254153,1708119133307,-6395.6,0.00051506,14]
[314254154,1708119133316,-500.0,0.00051506,60]
[314254155,1708119133326,-500.0,0.00051506,60]
[314254156,1708119133335,-500.0,0.00051506,60]
[314254157,1708119133344,-500.0,0.00051506,60]
[314254158,1708119133353,-2287.27,0.00051506,60]
[314254159,1708119133362,-500.0,0.00051506,60]
[314254160,1708119133371,-500.0,0.00051506,60]
[314254161,1708119133381,-542.74,0.00051506,60]
[314254162,1708119133390,-1517.81,0.00051506,60]
[314254163,1708119133399,-500.0,0.00051506,60]
[314254164,1708119133408,-520.3,0.00051506,60]
[314254165,1708119133418,-7477.21,0.00051506,60]
[314254166,1708119133427,-500.0,0.00051506,60]
[314254167,1708119133436,-714.64,0.00051506,60]
[314254168,1708119133446,-500.0,0.00051506,60]
[314254169,1708119133455,-630.12,0.00051506,60]
[314254170,1708119133465,-500.0,0.00051506,60]
[314254171,1708119133474,-500.0,0.00051506,60]
[314254172,1708119133484,-722.94,0.00051506,60]
[314254173,1708119133494,-910.24,0.00051506,60]
[314254174,1708119133503,-3306.89,0.00051506,60]
[314254175,1708119133514,-500.0,0.00051506,60]
[314254176,1708119133525,-544.82,0.00051506,60]
[314254177,1708119133536,-5810.7,0.00051506,60]
[314254178,1708119133546,-2333.25,0.00051506,60]
[314254179,1708119133556,-500.0,0.00051506,60]
[314254180,1708119133565,-1821.43,0.00051506,60]
[314254181,1708119133575,-500.0,0.00051506,60]
[314254182,1708119133584,-1107.39,0.00051506,60]
[314254183,1708119133594,-500.0,0.00051506,60]
[314254184,1708119133603,-3684.25,0.00051506,60]
[314254185,1708119133612,-583.02,0.00051506,60]
[314254186,1708119133624,-500.0,0.00051506,60]
[314254187,1708119133634,-500.0,0.00051506,60]
[314254188,1708119133645,-530.67,0.00051506,60]
[314254189,1708119133654,-673.09,0.00051506,60]
[314254190,1708119133664,-459.28301981,0.00051506,60]
[314254191,1708119133674,-500.0,0.00051506,60]
[314254192,1708119133684,-500.0,0.00051506,60]
[314254193,1708119133693,-500.0,0.00051506,60]
[314254194,1708119133702,-868.96,0.00051506,60]
[314254195,1708119133710,-500.0,0.00051506,60]
[314254196,1708119133719,-500.0,0.00051506,60]
[314254197,1708119133728,-688.48,0.00051506,60]
[314254198,1708119133738,-2624.63,0.00051506,60]
[314254199,1708119133747,-500.0,0.00051506,60]
[314254200,1708119133756,-500.0,0.00051506,60]
[314254201,1708119133765,-842.25,0.00051506,60]
[314254202,1708119133776,-500.0,0.00051506,60]
[314254203,1708119133785,-905.88,0.00051506,60]